bitfinex/quotes_BTCUSD_20250817
["timestamp","ask_amount","ask_price","bid_price","bid_amount"]
[1755460615373,0.47264021,117730.0,117720.0,0.13592]
[1755460615580,0.47264021,117730.0,117720.0,0.13292]
[1755460615726,0.47264021,117730.0,117720.0,0.13392]
[1755460615932,0.47264021,117730.0,117720.0,0.13592]
[1755460617162,0.47264021,117730.0,117720.0,0.003]
[1755460617365,0.47264021,117730.0,117720.0,0.13588]
[1755460617366,0.72728966,117730.0,117720.0,0.13588]
[1755460618328,0.72728966,117730.0,117720.0,0.13388]
[1755460618538,0.72728966,117730.0,117720.0,0.13488]
[1755460618752,0.72728966,117730.0,117720.0,0.13388]
[1755460618924,0.47264021,117730.0,117720.0,0.13288]
[1755460619146,0.47264021,117730.0,117720.0,0.13488]
[1755460619937,0.81210371,117730.0,117720.0,0.13488]
[1755460620137,0.81210371,117730.0,117720.0,0.13388]
[1755460620344,0.81210371,117730.0,117720.0,0.1338]
[1755460620537,0.81210371,117730.0,117720.0,0.1348]
[1755460621296,0.55745426,117730.0,117720.0,0.1348]
[1755460622153,1.15210371,117730.0,117720.0,0.002]
[1755460623210,1.15210371,117730.0,117720.0,0.001]
[1755460623876,0.18734368,117720.0,117710.0,0.13272]
[1755460624100,0.69864258,117720.0,117710.0,0.13272]
[1755460624954,0.69864258,117720.0,117710.0,0.13372]
[1755460625137,0.72417058,117720.0,117710.0,0.13472]
[1755460629947,0.21487168,117720.0,117710.0,0.13472]
[1755460630157,0.72417058,117720.0,117710.0,0.13472]
[1755460634601,0.21487168,117720.0,117710.0,0.13472]
[1755460634828,0.72417058,117720.0,117710.0,0.13472]
[1755460638378,1.15197463,117720.0,117710.0,0.002]
[1755460638615,1.40662408,117720.0,117710.0,0.002]
[1755460638797,0.442022,117700.0,117690.0,0.00314]
[1755460639001,0.442022,117700.0,117690.0,0.13756]
[1755460639612,0.467552,117700.0,117690.0,0.13756]
[1755460640245,0.467552,117700.0,117690.0,0.14056]
[1755460641633,0.469562,117700.0,117690.0,0.14256]
[1755460642965,0.21491255,117700.0,117690.0,0.14256]
[1755460643168,0.467552,117700.0,117690.0,0.14256]
[1755460644078,0.47610208,117700.0,117690.0,0.14256]
[1755460644287,0.73271153,117700.0,117690.0,0.1426]
[1755460644658,0.469512,117700.0,117690.0,0.1426]
[1755460647689,0.467552,117700.0,117690.0,0.1426]
[1755460647874,0.21290255,117700.0,117690.0,0.1426]
[1755460648074,0.467552,117700.0,117690.0,0.1426]
[1755460650912,0.469522,117700.0,117690.0,0.1426]
[1755460654385,0.467552,117700.0,117690.0,0.1426]
[1755460656892,0.21290255,117700.0,117690.0,0.1426]
[1755460657102,0.467552,117700.0,117690.0,0.1426]
[1755460663323,0.469532,117700.0,117690.0,0.1426]
[1755460665022,0.21488255,117700.0,117690.0,0.1426]
[1755460665276,0.469532,117700.0,117690.0,0.1426]
[1755460665709,0.21488255,117700.0,117690.0,0.1426]
[1755460666087,0.469532,117700.0,117690.0,0.1426]
[1755460668783,0.21488255,117700.0,117690.0,0.1426]
[1755460669000,0.469532,117700.0,117690.0,0.1426]
[1755460676273,0.21290255,117700.0,117690.0,0.39724945]
[1755460676407,0.21290255,117700.0,117690.0,0.42119945]
[1755460677038,0.21290255,117700.0,117690.0,0.16655]
[1755460677238,0.21290255,117700.0,117690.0,0.42119945]
[1755460690791,0.469532,117700.0,117690.0,0.16655]
[1755460690995,0.469532,117700.0,117690.0,0.13946]
[1755460691204,0.469532,117700.0,117690.0,0.13732]
[1755460691613,0.469532,117700.0,117690.0,0.13445]
[1755460691833,0.469532,117700.0,117690.0,0.13962]
[1755460692034,0.469532,117700.0,117690.0,0.14062]
[1755460692325,0.21488255,117700.0,117690.0,0.14062]
[1755460692588,0.469532,117700.0,117690.0,0.14062]
[1755460693723,0.21488255,117700.0,117690.0,0.14062]
[1755460693939,0.469532,117700.0,117690.0,0.14062]
[1755460695483,0.21488255,117700.0,117690.0,0.14062]
[1755460695698,0.21290255,117700.0,117690.0,0.14062]
[1755460696518,0.21290255,117700.0,117690.0,0.39526945]
[1755460706628,0.21290255,117700.0,117690.0,0.14062]
[1755460706887,0.21290255,117700.0,117690.0,0.39526945]
[1755460711482,0.21290255,117700.0,117690.0,0.14062]
[1755460711694,0.21290255,117700.0,117690.0,0.39526945]
[1755460711903,0.21290255,117700.0,117690.0,0.14062]
[1755460712133,0.21290255,117700.0,117690.0,0.39526945]
[1755460717021,0.21290255,117700.0,117690.0,0.14062]
[1755460717224,0.21290255,117700.0,117690.0,0.39526945]
[1755460733108,0.18737255,117700.0,117690.0,0.39526945]
[1755460737003,0.18737255,117700.0,117690.0,0.14062]
[1755460737209,0.18737255,117700.0,117690.0,0.39526945]
[1755460738242,0.18737255,117700.0,117690.0,0.14062]
[1755460739012,0.18737255,117700.0,117690.0,0.39526945]
[1755460739396,0.18737255,117700.0,117690.0,0.14062]
[1755460739599,0.18737255,117700.0,117690.0,0.39526945]
[1755460744178,0.18647194,117700.0,117690.0,0.39526945]
[1755460753351,0.18647194,117700.0,117690.0,0.14062]
[1755460753560,0.18647194,117700.0,117690.0,0.39526945]
[1755460771165,0.18647194,117700.0,117690.0,0.14062]
[1755460771370,0.18647194,117700.0,117690.0,0.39526945]
[1755460773559,0.52647194,117700.0,117690.0,0.39526945]
[1755460774338,0.35744902,117700.0,117690.0,0.56520742]
[1755460774539,0.01744902,117700.0,117690.0,0.92877092]
[1755460774978,0.01744902,117700.0,117690.0,0.97877092]
[1755460775334,0.01744902,117700.0,117690.0,0.97777092]
[1755460775774,0.01744902,117700.0,117690.0,0.97977092]
[1755460776185,0.01744902,117700.0,117690.0,0.97577092]
[1755460776412,0.01744902,117700.0,117690.0,0.98377092]
[1755460776617,0.01744902,117700.0,117690.0,0.97977092]
[1755460777103,0.01744902,117700.0,117690.0,0.98477092]
[1755460780038,0.01744902,117700.0,117690.0,0.73012147]
[1755460799423,0.01744902,117700.0,117690.0,0.47547202]
[1755460799631,0.01744902,117700.0,117690.0,0.73012147]
[1755460800797,0.18737255,117700.0,117690.0,0.73012147]
[1755460801220,0.18936255,117700.0,117690.0,0.73012147]
[1755460801641,0.447012,117700.0,117690.0,0.14381405]
[1755460801877,0.447012,117700.0,117690.0,0.1906]
[1755460802263,0.19236255,117700.0,117690.0,0.1906]
[1755460802639,0.70166145,117700.0,117690.0,0.055]
[1755460802854,0.18740143,117680.0,117670.0,0.30185139]
[1755460803252,0.18740143,117680.0,117670.0,0.43853139]
[1755460803478,0.18740143,117680.0,117670.0,0.18388194]
[1755460803691,0.18955143,117680.0,117670.0,0.43853139]
[1755460804103,0.18960023,117680.0,117670.0,0.43853139]
[1755460804550,0.18745023,117680.0,117670.0,0.60849824]
[1755460805181,0.18745023,117680.0,117670.0,0.61249824]
[1755460805636,0.01749782,117680.0,117670.0,0.95196174]
[1755460805837,4.88e-05,117680.0,117670.0,0.97636174]
[1755460806250,4.88e-05,117680.0,117670.0,0.97836174]
[1755460806667,4.88e-05,117680.0,117670.0,1.23007474]
[1755460807144,4.88e-05,117680.0,117670.0,1.25560274]
[1755460807564,4.88e-05,117680.0,117670.0,0.74430384]
[1755460807768,4.88e-05,117680.0,117670.0,1.25360274]
[1755460807980,4.88e-05,117680.0,117670.0,1.25660274]
[1755460808187,4.88e-05,117680.0,117670.0,1.25260274]
[1755460808635,4.88e-05,117680.0,117670.0,1.25760274]
[1755460809142,4.88e-05,117680.0,117670.0,1.30760274]
[1755460809435,0.01749782,117680.0,117670.0,1.28207474]
[1755460809780,0.01749782,117680.0,117670.0,0.63722484]
[1755460809782,0.70077091,117680.0,117670.0,0.01660343]
[1755460809975,0.44514968,117680.0,117670.0,0.13956]
[1755460810173,0.19050023,117680.0,117670.0,0.13956]
[1755460810562,0.19050023,117680.0,117670.0,0.13656]
[1755460811015,0.19050023,117680.0,117670.0,0.38820945]
[1755460811440,0.19050023,117680.0,117670.0,0.39020945]
[1755460811683,0.19050023,117680.0,117670.0,0.38620945]
[1755460812162,0.19050023,117680.0,117670.0,0.38720945]
[1755460812583,0.19050023,117680.0,117670.0,0.13256]
[1755460812793,0.19050023,117680.0,117670.0,0.38820945]
[1755460813001,0.19050023,117680.0,117670.0,0.13356]
[1755460813152,0.44514968,117680.0,117670.0,0.002]
[1755460813372,0.44514968,117680.0,117670.0,0.13356]
[1755460814005,0.19050023,117680.0,117670.0,0.13356]
[1755460814208,0.47068468,117680.0,117670.0,0.13356]
[1755460815477,0.21603523,117680.0,117670.0,0.13356]
[1755460815678,0.47068468,117680.0,117670.0,0.13356]
[1755460817384,0.21603523,117680.0,117670.0,0.13356]
[1755460817582,0.47068468,117680.0,117670.0,0.13356]
[1755460818059,0.21603523,117680.0,117670.0,0.13356]
[1755460818271,0.47068468,117680.0,117670.0,0.13356]
[1755460820050,0.21603523,117680.0,117670.0,0.13356]
[1755460822083,0.21513523,117680.0,117670.0,0.38820945]
[1755460822606,0.21513523,117680.0,117670.0,0.5632563]
[1755460822827,0.21298523,117680.0,117670.0,0.5632563]
[1755460823272,0.18745023,117680.0,117670.0,0.5632563]
[1755460823482,0.18745023,117680.0,117670.0,0.5622563]
[1755460823715,0.18745023,117680.0,117670.0,0.13864]
[1755460823915,0.18745023,117680.0,117670.0,0.39228945]
[1755460824123,0.18745023,117680.0,117670.0,0.39428945]
[1755460824326,0.18745023,117680.0,117670.0,0.5642563]
[1755460825762,0.18745023,117680.0,117670.0,0.5632563]
[1755460825987,0.18745023,117680.0,117670.0,0.5652563]
[1755460826442,0.18745023,117680.0,117670.0,0.31060685]
[1755460828731,0.18745023,117680.0,117670.0,0.14064]
[1755460831414,0.18745023,117680.0,117670.0,0.65044425]
[1755460831630,0.18745023,117680.0,117670.0,0.67484425]
[1755460831845,0.18745023,117680.0,117670.0,0.16504]
[1755460832051,0.18745023,117680.0,117670.0,0.5048774]
[1755460832453,0.18745023,117680.0,117670.0,0.5028774]
[1755460832712,0.18745023,117680.0,117670.0,0.5048774]
[1755460833139,0.18745023,117680.0,117670.0,0.5028774]
[1755460833343,0.18745023,117680.0,117670.0,0.16504]
[1755460833559,0.18745023,117680.0,117670.0,0.16716458]
[1755460833796,0.18745023,117680.0,117670.0,0.16504]
[1755460834415,0.18745023,117680.0,117670.0,0.16304]
[1755460834964,0.18745023,117680.0,117670.0,0.16704]
[1755460841876,0.18745023,117680.0,117670.0,0.33913143]
[1755460842270,0.18745023,117680.0,117670.0,0.33700685]
[1755460842478,0.18745023,117680.0,117670.0,0.67684425]
[1755460843120,0.18745023,117680.0,117670.0,0.5068774]
[1755460843897,0.01749782,117680.0,117670.0,0.7616583]
[1755460844158,4.88e-05,117680.0,117670.0,0.7616583]
[1755460844580,0.01749782,117680.0,117670.0,0.7616583]
[1755460844802,0.01749782,117680.0,117670.0,0.8371873]
[1755460845014,4.88e-05,117680.0,117670.0,0.8371873]
[1755460846183,4.88e-05,117680.0,117670.0,0.8351873]
[1755460846652,4.88e-05,117680.0,117670.0,0.8381873]
[1755460847057,4.88e-05,117680.0,117670.0,0.8341873]
[1755460847273,4.88e-05,117680.0,117670.0,0.8391873]
[1755460853192,4.88e-05,117680.0,117670.0,0.8136583]
[1755460854270,4.88e-05,117680.0,117670.0,0.9834119]
[1755460860328,4.88e-05,117680.0,117670.0,0.8518519]
[1755460860549,4.88e-05,117680.0,117670.0,0.9832919]
[1755460861180,4.88e-05,117680.0,117670.0,0.4737009]
[1755460861410,4.88e-05,117680.0,117670.0,0.9832919]
[1755460863206,4.88e-05,117680.0,117670.0,0.4737009]
[1755460863661,4.88e-05,117680.0,117670.0,0.7284964]
[1755460865065,4.88e-05,117680.0,117670.0,0.9832919]
[1755460866161,4.88e-05,117680.0,117670.0,0.8518519]
[1755460866366,0.01947782,117680.0,117670.0,0.7284564]
[1755460866581,0.18943023,117680.0,117670.0,0.7284564]
[1755460867299,0.01947782,117680.0,117670.0,0.7284564]
[1755460867721,0.18943023,117680.0,117670.0,0.7284564]
[1755460868812,0.18943023,117680.0,117670.0,0.14281405]
[1755460869027,0.19245023,117680.0,117670.0,0.27421405]
[1755460869253,0.19245023,117680.0,117670.0,0.6989764]
[1755460869473,0.18943023,117680.0,117670.0,0.6989764]
[1755460869704,0.18943023,117680.0,117670.0,0.52900955]
[1755460869932,0.18943023,117680.0,117670.0,0.52400955]
[1755460870141,0.18943023,117680.0,117670.0,0.6939764]
[1755460870352,0.18943023,117680.0,117670.0,0.27321405]
[1755460871422,0.18943023,117680.0,117670.0,0.4401809]
[1755460871860,0.18943023,117680.0,117670.0,0.4421809]
[1755460872361,0.18943023,117680.0,117670.0,0.27221405]
[1755460873282,0.18943023,117680.0,117670.0,0.4421809]
[1755460874790,0.18943023,117680.0,117670.0,0.78199915]
[1755460876127,0.18943023,117680.0,117670.0,0.78493915]
[1755460876349,0.18943023,117680.0,117670.0,0.78695915]
[1755460877862,0.18943023,117680.0,117670.0,0.79560714]
[1755460879022,0.18943023,117680.0,117670.0,0.79556714]
[1755460879551,0.18943023,117680.0,117670.0,0.45574889]
[1755460879728,0.18943023,117680.0,117670.0,0.79556714]
[1755460886190,0.18745023,117680.0,117670.0,0.79556714]
[1755460886401,0.01749782,117680.0,117670.0,0.79556714]
[1755460886642,0.18745023,117680.0,117670.0,0.79556714]
[1755460887074,0.18745023,117680.0,117670.0,0.45574889]
[1755460887221,0.18745023,117680.0,117670.0,0.79556714]
[1755460887430,0.18745023,117680.0,117670.0,0.45574889]
[1755460887604,0.18745023,117680.0,117670.0,0.79556714]
[1755460890591,0.18745023,117680.0,117670.0,0.45574889]
[1755460890816,0.18745023,117680.0,117670.0,0.79556714]
[1755460892396,0.18745023,117680.0,117670.0,0.71060151]
[1755460901261,0.18943023,117680.0,117670.0,0.71060151]
[1755460903644,0.18745023,117680.0,117670.0,0.71060151]
[1755460905861,0.18745023,117680.0,117670.0,0.45574889]
[1755460906078,0.18745023,117680.0,117670.0,0.71060151]
[1755460908502,0.18745023,117680.0,117670.0,0.57924151]
[1755460908686,0.18745023,117680.0,117670.0,0.71052151]
[1755460909322,0.01749782,117680.0,117670.0,0.71052151]
[1755460909758,0.01749782,117680.0,117670.0,0.71048151]
[1755460910412,0.18745023,117680.0,117670.0,0.57924151]
[1755460910867,0.18745023,117680.0,117670.0,0.71048151]
[1755460918635,0.18943023,117680.0,117670.0,0.71048151]
[1755460919534,0.18943023,117680.0,117670.0,0.54051466]
[1755460919942,0.18943023,117680.0,117670.0,0.28566204]
[1755460920240,0.18943023,117680.0,117670.0,0.54051466]
[1755460920456,0.18943023,117680.0,117670.0,0.71048151]
[1755460920875,0.18943023,117680.0,117670.0,0.54051466]
[1755460921724,0.18943023,117680.0,117670.0,0.71048151]
[1755460922157,0.18745023,117680.0,117670.0,0.71048151]
[1755460923455,0.18745023,117680.0,117670.0,0.45562889]
[1755460923660,0.18745023,117680.0,117670.0,0.71048151]
[1755460926862,0.18745023,117680.0,117670.0,0.45562889]
[1755460927026,0.18745023,117680.0,117670.0,0.71048151]
[1755460928997,0.18745023,117680.0,117670.0,0.57924151]
[1755460929142,0.18745023,117680.0,117670.0,0.71044151]
[1755460930598,0.01749782,117680.0,117670.0,0.71044151]
[1755460932077,0.01749782,117680.0,117670.0,0.73429151]
[1755460936114,0.18745023,117680.0,117670.0,0.73429151]
[1755460936323,0.18745023,117680.0,117670.0,0.47943889]
[1755460936531,0.18745023,117680.0,117670.0,0.73429151]
[1755460947984,0.01749782,117680.0,117670.0,0.73429151]
[1755460950924,0.01749782,117680.0,117670.0,0.98914413]
[1755460951356,0.01749782,117680.0,117670.0,1.01467213]
[1755460951755,0.01749782,117680.0,117670.0,0.75581951]
[1755460951963,0.01749782,117680.0,117670.0,0.75881951]
[1755460952295,0.01749782,117680.0,117670.0,0.75381951]
[1755460952700,0.01749782,117680.0,117670.0,0.76081951]
[1755460953108,0.01749782,117680.0,117670.0,0.75881951]
[1755460953511,0.01749782,117680.0,117670.0,0.76181951]
[1755460955360,0.01749782,117680.0,117670.0,0.50696689]
[1755460955561,0.01749782,117680.0,117670.0,0.76181951]
[1755460961058,0.01749782,117680.0,117670.0,2.02910213]
[1755460961276,0.01749782,117680.0,117670.0,1.47779451]
[1755460962126,0.01749782,117680.0,117670.0,1.47479451]
[1755460962329,0.01749782,117680.0,117670.0,1.46979451]
[1755460964724,0.01749782,117680.0,117670.0,1.21494189]
[1755460964939,0.01749782,117680.0,117670.0,1.46979451]
[1755460965135,0.01749782,117680.0,117670.0,1.31035551]
[1755460965345,0.01749782,117680.0,117670.0,1.22861251]
[1755460970072,0.01749782,117680.0,117670.0,1.48346513]
[1755460970710,0.01749782,117680.0,117670.0,1.22861251]
[1755460970913,0.01749782,117680.0,117670.0,1.22857251]
[1755460973823,0.01749782,117680.0,117670.0,0.97371989]
[1755460974142,0.01749782,117680.0,117670.0,1.22857251]
[1755460983406,0.01749782,117680.0,117670.0,0.97371989]
[1755460983610,0.01749782,117680.0,117670.0,1.22857251]
[1755460985834,0.01749782,117680.0,117670.0,1.3355102]
[1755460986244,0.01749782,117680.0,117670.0,1.22857251]
[1755460986663,0.01749782,117680.0,117670.0,1.48342513]
[1755460987129,0.01749782,117680.0,117670.0,1.59036282]
[1755460989669,0.01749782,117680.0,117670.0,1.3355102]
[1755460990068,0.01749782,117680.0,117670.0,1.3354302]
[1755460990269,0.01749782,117680.0,117670.0,1.22849251]
[1755460994191,0.01749782,117680.0,117670.0,1.48334513]
[1755460999346,0.01749782,117680.0,117670.0,1.22849251]
[1755460999549,0.01749782,117680.0,117670.0,1.48334513]
[1755461000637,0.01749782,117680.0,117670.0,1.59028282]
[1755461001719,0.01749782,117680.0,117670.0,1.85528282]
[1755461002303,0.01749782,117680.0,117670.0,1.34557758]
[1755461002502,0.01749782,117680.0,117670.0,1.85528282]
[1755461005810,0.01749782,117680.0,117670.0,1.6004302]
[1755461007561,0.01749782,117680.0,117670.0,1.85528282]
[1755461024969,0.18943023,117680.0,117670.0,1.18169458]
[1755461025173,0.19244023,117680.0,117670.0,1.32960951]
[1755461025377,0.19244023,117680.0,117670.0,1.06460951]
[1755461025784,0.19244023,117680.0,117670.0,0.80975689]
[1755461025995,0.19244023,117680.0,117670.0,1.03908151]
[1755461026206,0.19244023,117680.0,117670.0,0.91128151]
[1755461026416,0.19244023,117680.0,117670.0,1.04208151]
[1755461026820,0.19244023,117680.0,117670.0,1.04408151]
[1755461027032,0.19244023,117680.0,117670.0,0.78922889]
[1755461027245,0.19244023,117680.0,117670.0,1.04408151]
[1755461027905,0.19244023,117680.0,117670.0,0.78422889]
[1755461028131,0.19244023,117680.0,117670.0,0.78622889]
[1755461028337,0.19244023,117680.0,117670.0,0.78922889]
[1755461029781,0.19244023,117680.0,117670.0,0.82695077]
[1755461030598,0.18943023,117680.0,117670.0,1.08180339]
[1755461031773,0.01947782,117680.0,117670.0,1.08180339]
[1755461033923,0.18943023,117680.0,117670.0,0.82695077]
[1755461034040,0.18943023,117680.0,117670.0,1.08180339]
[1755461034461,0.01947782,117680.0,117670.0,1.08180339]
[1755461034893,0.18943023,117680.0,117670.0,0.82695077]
[1755461035129,0.18943023,117680.0,117670.0,1.08180339]
[1755461036198,0.01947782,117680.0,117670.0,1.08180339]
[1755461038493,0.01947782,117680.0,117670.0,1.08483339]
[1755461038692,0.01947782,117680.0,117670.0,1.08683339]
[1755461041501,0.01947782,117680.0,117670.0,0.83198077]
[1755461041704,0.01947782,117680.0,117670.0,1.08683339]
[1755461042717,0.18943023,117680.0,117670.0,1.08683339]
[1755461042919,0.70215547,117680.0,117670.0,0.30825593]
[1755461043129,0.44730285,117680.0,117670.0,0.30825593]
[1755461043705,0.44730285,117680.0,117670.0,0.3168062]
[1755461043938,0.44730285,117680.0,117670.0,0.30825593]
[1755461044604,0.44730285,117680.0,117670.0,0.17753593]
[1755461044805,0.44730285,117680.0,117670.0,0.30825593]
[1755461050237,0.44428285,117680.0,117670.0,0.30825593]
[1755461051174,0.18943023,117680.0,117670.0,0.30825593]
[1755461051380,0.44428285,117680.0,117670.0,0.30825593]
[1755461052767,0.44428285,117680.0,117670.0,0.17753593]
[1755461053011,0.44428285,117680.0,117670.0,0.30825593]
[1755461053395,0.44428285,117680.0,117670.0,0.22344188]
[1755461053839,0.44428285,117680.0,117670.0,0.17344188]
[1755461054463,0.44428285,117680.0,117670.0,0.17144188]
[1755461055359,0.44428285,117680.0,117670.0,0.16844188]
[1755461055577,0.44428285,117680.0,117670.0,0.17044188]
[1755461055734,0.44428285,117680.0,117670.0,0.17244188]
[1755461058100,0.70214547,117680.0,117670.0,0.004]
[1755461058307,0.18743032,117660.0,117650.0,0.40769083]
[1755461058531,0.18743032,117660.0,117650.0,1.05005325]
[1755461058749,0.18743032,117660.0,117650.0,1.02452225]
[1755461059800,0.18743032,117660.0,117650.0,1.02752225]
[1755461060208,0.18743032,117660.0,117650.0,1.02952225]
[1755461060615,0.18743032,117660.0,117650.0,1.06137359]
[1755461062398,0.18743032,117660.0,117650.0,0.80652097]
[1755461062646,0.18743032,117660.0,117650.0,1.06137359]
[1755461069926,0.44426294,117660.0,117650.0,0.12889388]
[1755461070192,0.44426294,117660.0,117650.0,0.25957388]
[1755461070479,0.18941032,117660.0,117650.0,0.26467388]
[1755461070686,0.18743032,117660.0,117650.0,0.26467388]
[1755461071284,0.18743032,117660.0,117650.0,0.27316444]
[1755461071758,0.18743032,117660.0,117650.0,0.26467388]
[1755461073147,0.44228294,117660.0,117650.0,0.26467388]
[1755461073368,0.44228294,117660.0,117650.0,0.13568]
[1755461073369,0.70211556,117660.0,117650.0,0.13568]
[1755461073598,0.70211556,117660.0,117650.0,0.005]
[1755461073868,0.70211556,117660.0,117650.0,0.13568]
[1755461074103,0.70211556,117660.0,117650.0,0.11168]
[1755461074337,0.72765656,117660.0,117650.0,0.11168]
[1755461074989,0.72765656,117660.0,117650.0,0.11268]
[1755461075205,0.72765656,117660.0,117650.0,0.11168]
[1755461083410,0.21795132,117660.0,117650.0,0.11168]
[1755461083613,0.72465656,117660.0,117650.0,0.11168]
[1755461085617,0.18744477,117650.0,117640.0,0.00301]
[1755461085831,0.44229739,117650.0,117640.0,0.13578]
[1755461086060,0.44229739,117650.0,117640.0,0.00514]
[1755461086242,0.44229739,117650.0,117640.0,0.13578]
[1755461086530,0.44229739,117650.0,117640.0,0.00514]
[1755461086729,0.44229739,117650.0,117640.0,0.13578]
[1755461087391,0.44229739,117650.0,117640.0,0.00514]
[1755461087722,0.44229739,117650.0,117640.0,0.13578]
[1755461088208,0.44229739,117650.0,117640.0,0.00514]
[1755461088454,0.44229739,117650.0,117640.0,0.13578]
[1755461092621,0.18745922,117640.0,117620.0,0.22532039]
[1755461092824,0.18745922,117640.0,117620.0,0.13165789]
[1755461092825,0.44232629,117630.0,117620.0,0.13165789]
[1755461093042,0.18747367,117630.0,117620.0,0.28932789]
[1755461093248,0.18747367,117630.0,117620.0,0.54418051]
[1755461093460,0.18747367,117630.0,117620.0,0.54719051]
[1755461093887,0.18747367,117630.0,117620.0,0.54733694]
[1755461094298,0.18747367,117630.0,117620.0,0.29248432]
[1755461094559,0.18747367,117630.0,117620.0,0.54733694]
[1755461094739,0.18747367,117630.0,117620.0,0.54833694]
[1755461095114,0.18747367,117630.0,117620.0,0.54733694]
[1755461096725,0.18747367,117630.0,117620.0,0.29248432]
[1755461096964,0.18747367,117630.0,117620.0,0.54733694]
[1755461097429,0.18747367,117630.0,117620.0,0.29248432]
[1755461097642,0.18747367,117630.0,117620.0,0.54733694]
[1755461099538,0.18747367,117630.0,117620.0,0.71737604]
[1755461100560,0.18747367,117630.0,117620.0,0.97222866]
[1755461103433,0.18747367,117630.0,117620.0,0.97322866]
[1755461104068,0.18747367,117630.0,117620.0,0.97422866]
[1755461104486,0.18746518,117640.0,117630.0,0.17002465]
[1755461104696,0.18746518,117640.0,117630.0,0.51166132]
[1755461104697,0.01744902,117640.0,117630.0,0.51166132]
[1755461104929,0.01744902,117640.0,117630.0,0.53941132]
[1755461105118,0.01744902,117650.0,117640.0,0.16999846]
[1755461105328,0.01744902,117650.0,117640.0,0.89708775]
[1755461105535,0.01744902,117650.0,117640.0,0.92483775]
[1755461106595,0.01744902,117650.0,117640.0,0.41513251]
[1755461106807,0.01744902,117650.0,117640.0,0.92483775]
[1755461107256,0.01844902,117650.0,117640.0,0.92483775]
[1755461107940,0.01744902,117650.0,117640.0,0.92483775]
[1755461108434,0.01744902,117650.0,117640.0,0.92683775]
[1755461108846,0.01744902,117650.0,117640.0,0.41713251]
[1755461109054,0.01744902,117650.0,117640.0,0.92683775]
[1755461109962,0.18743244,117660.0,117650.0,0.16999575]
[1755461110174,0.18743244,117660.0,117650.0,0.42681837]
[1755461110383,0.18743244,117660.0,117650.0,0.42988837]
[1755461110599,0.18743244,117660.0,117650.0,0.17503575]
[1755461110817,0.18743244,117660.0,117650.0,0.42988837]
[1755461113204,0.01744902,117660.0,117650.0,0.42988837]
[1755461114481,0.18743032,117660.0,117650.0,0.42988837]
[1755461115974,0.01744902,117660.0,117650.0,0.55379757]
[1755461116222,0.01744902,117660.0,117650.0,0.57947757]
[1755461116434,0.01744902,117660.0,117650.0,0.58047757]
[1755461116647,0.01744902,117670.0,117660.0,0.16996927]
[1755461116879,0.01744902,117670.0,117660.0,0.90008856]
[1755461117093,0.01744902,117670.0,117660.0,0.92476856]
[1755461117967,0.01749781,117670.0,117660.0,0.92476856]
[1755461118499,0.01749781,117670.0,117660.0,0.75488904]
[1755461120552,0.01749781,117670.0,117660.0,0.75588904]
[1755461121597,0.01749781,117670.0,117660.0,0.75688904]
[1755461124284,0.01749781,117670.0,117660.0,0.41706332]
[1755461124496,0.01749781,117670.0,117660.0,0.75688904]
[1755461130083,4.879e-05,117670.0,117660.0,4.14744862]
[1755461130299,4.879e-05,117670.0,117660.0,3.8076229]
[1755461130504,4.879e-05,117670.0,117660.0,3.8331509]
[1755461131346,4.879e-05,117670.0,117660.0,3.8311509]
[1755461131590,0.02649781,117670.0,117660.0,3.8311509]
[1755461132010,0.02649781,117670.0,117660.0,3.76348904]
[1755461134642,0.02649781,117670.0,117660.0,3.68539204]
[1755461134874,0.02649781,117670.0,117660.0,3.67178204]
[1755461135083,0.02649781,117670.0,117660.0,2.81974332]
[1755461135296,0.02649781,117670.0,117660.0,3.05013904]
[1755461140814,0.02649781,117670.0,117660.0,3.31513904]
[1755461150372,0.02649781,117670.0,117660.0,3.73967015]
[1755461162597,0.02649781,117670.0,117660.0,3.84660784]
[1755461169916,0.02649781,117670.0,117660.0,3.73967015]
[1755461189151,0.02649781,117670.0,117660.0,3.74767015]
[1755461191200,0.02848781,117670.0,117660.0,2.86764615]
[1755461191845,0.02848781,117670.0,117660.0,2.87303615]
[1755461192281,0.02649781,117670.0,117660.0,2.87303615]
[1755461194741,0.02649781,117670.0,117660.0,2.10867932]
[1755461194952,0.02649781,117670.0,117660.0,2.87303615]
[1755461196413,0.02649781,117670.0,117660.0,2.89569615]
[1755461197663,0.02649781,117670.0,117660.0,2.88769615]
[1755461197880,0.02649781,117670.0,117660.0,2.85964615]
[1755461198103,0.02649781,117670.0,117660.0,2.86471615]
[1755461198341,0.02649781,117670.0,117660.0,2.88737615]
[1755461202728,0.02649781,117670.0,117660.0,2.89537615]
[1755461204069,0.02848781,117670.0,117660.0,2.73732615]
[1755461204311,0.02848781,117670.0,117660.0,2.86760615]
[1755461204527,0.02649781,117670.0,117660.0,2.87267615]
[1755461206681,0.02649781,117670.0,117660.0,2.92033615]
[1755461207907,0.02649781,117670.0,117660.0,2.91233615]
[1755461212948,0.02649781,117670.0,117660.0,2.92033615]
[1755461216747,0.02649781,117670.0,117660.0,2.89260615]
[1755461216954,0.02848781,117670.0,117660.0,2.89260615]
[1755461217382,0.02848781,117670.0,117660.0,2.89767615]
[1755461217587,0.02649781,117670.0,117660.0,2.89767615]
[1755461218630,0.02848781,117670.0,117660.0,2.76739615]
[1755461218837,0.02848781,117670.0,117660.0,2.88460615]
[1755461219384,0.02649781,117670.0,117660.0,2.88967615]
[1755461222803,0.02649781,117670.0,117660.0,2.91266615]
[1755461223910,0.02649781,117670.0,117660.0,2.92066615]
[1755461236339,0.02649781,117670.0,117660.0,3.12466615]
[1755461244035,0.02649781,117670.0,117660.0,3.11666615]
[1755461249221,0.02649781,117670.0,117660.0,3.12466615]
[1755461250306,0.02649781,117670.0,117660.0,3.11666615]
[1755461252885,0.02649781,117670.0,117660.0,2.22202932]
[1755461253089,0.02844781,117670.0,117660.0,2.18922254]
[1755461253366,0.02844781,117670.0,117660.0,2.03504354]
[1755461253581,0.02844781,117670.0,117660.0,2.16520354]
[1755461256075,0.02844781,117670.0,117660.0,2.16734354]
[1755461256279,0.02844781,117670.0,117660.0,2.17057354]
[1755461256420,0.02844781,117670.0,117660.0,2.42535915]
[1755461259280,0.02844781,117670.0,117660.0,2.17057354]
[1755461259482,0.02844781,117670.0,117660.0,2.42535915]
[1755461264028,0.02649781,117670.0,117660.0,2.42535915]
[1755461276978,0.02649781,117670.0,117660.0,2.44861915]
[1755461294287,0.02649781,117670.0,117660.0,2.45661915]
[1755461298220,0.00296,117700.0,117690.0,0.50993797]
[1755461298450,0.00504882,117700.0,117690.0,0.72479202]
[1755461298676,0.00504882,117700.0,117690.0,1.23436324]
[1755461298892,0.00504882,117700.0,117690.0,1.25988524]
[1755461299530,0.00504882,117700.0,117690.0,1.26088524]
[1755461299744,0.00504882,117700.0,117690.0,1.26188524]
[1755461299885,0.00504882,117700.0,117690.0,2.23224424]
[1755461300107,0.00208882,117700.0,117690.0,2.23224424]